[Event "Cellavision Cup 2019"]
[Site "Lund"]
[Date "2019.08.03"]
[Round "5.14"]
[White "Bellon Lopez, Juan Manuel"]
[Black "Jogstad, Daniel"]
[Result "1/2-1/2"]
[ECO "E70"]
[WhiteElo "2343"]
[BlackElo "2154"]
[Annotator "NA"]
[PlyCount "155"]
[EventDate "2019.08.02"]
[EventType "swiss"]
[EventCountry "SWE"]
[SourceTitle "playchess.com"]
[Source "ChessBase"]
[SourceQuality "1"]
[TimeControl "5400+30"]

1. d4 {[%emt 0:00:00]} Nf6 {[%emt 0:00:00]} 2. c4 {[%emt 0:00:00]} g6 {[%emt 0:00:04]} 3. Nc3 {[%emt 0:00:00]} Bg7 {[%emt 0:00:15]} 4. e4 {[%emt 0:00:00]} d6 {[%emt 0:00:08]} 5. Bg5 {[%emt 0:00:13]} O-O {[%emt 0:02:51]} 6. Qd2 {[%emt 0:00:23]} c5 {[%emt 0:09:50]} 7. d5 {[%emt 0:00:24]} a6 {[%emt 0:00:58]} 8. f3 {[%emt 0:00:39]} b5 {[%emt 0:25:18]} 9. cxb5 {[%emt 0:00:26]} axb5 {[%emt 0:00:03]} 10. Bxb5 {[%emt 0:00:12]} Ba6 {[%emt 0:00:22]} 11. a4 {[%emt 0:03:37]} Qb6 {[%emt 0:02:54]} 12. Nge2 {[%emt 0:05:20]} Bxb5 {[%emt 0:07:29]} 13. Nxb5 {[%emt 0:00:24]} Nbd7 {[%emt 0:00:33]} 14. O-O {[%emt 0:01:30]} Ne5 {[%emt 0:08:57]} 15. b3 {[%emt 0:06:06]} c4+ {[%emt 0:04:26]} 16. Be3 {[%emt 0:03:44]} Qb7 {[%emt 0:00:06]} 17. b4 {[%emt 0:01:59]} Rfc8 {[%emt 0:04:07]} 18. Bd4 {[%emt 0:01:22]} Nd3 {[%emt 0:11:29]} 19. Qc3 {[%emt 0:13:10]} Qd7 {[%emt 0:05:17]} 20. g3 {[%emt 0:08:02]} h5 {[%emt 0:01:53]} 21. Nc1 {[%emt 0:01:39]} h4 {[%emt 0:02:16]} 22. Nxd3 {[%emt 0:06:13]} cxd3 {[%emt 0:00:07]} 23. Qxd3 {[%emt 0:00:06]} hxg3 {[%emt 0:00:05]} 24. Ra2 {[%emt 0:07:39]} gxh2+ {[%emt 0:00:07]} 25. Kxh2 {[%emt 0:03:43]} Nh5 {[%emt 0:03:28]} 26. Qe3 {[%emt 0:10:42]} Bxd4 {[%emt 0:01:42]} 27. Nxd4 {[%emt 0:00:38]} Rxa4 {[%emt 0:01:05]} 28. Rxa4 {[%emt 0:00:03]} Qxa4 {[%emt 0:00:05]} 29. Nc6 {[%emt 0:00:05]} Re8 {[%emt 0:02:39]} 30. Rc1 {[%emt 0:11:39]} Qa2+ {[%emt 0:01:42]} 31. Kg1 {[%emt 0:03:31]} e5 {[%emt 0:00:20]} 32. dxe6 {[%emt 0:00:56]} Qxe6 {[%emt 0:00:06]} 33. Nd4 {[%emt 0:03:05]} Qh3 {[%emt 0:01:04]} 34. Ne2 {[%emt 0:00:11]} d5 {[%emt 0:00:54]} 35. e5 {[%emt 0:02:01]} Ng3 {[%emt 0:00:48]} 36. Rc2 {[%emt 0:02:45]} Qh1+ {[%emt 0:03:06]} 37. Kf2 {[%emt 0:00:04]} Qh2+ {[%emt 0:00:44]} 38. Ke1 {[%emt 0:00:03]} Nf5 {[%emt 0:00:40]} 39. Qf4 {[%emt 0:00:57]} Qxf4 {[%emt 0:00:23]} 40. Nxf4 {[%emt 0:00:03]} Rxe5+ {[%emt 0:00:06]} 41. Re2 {[%emt 0:00:49]} Ne3 {[%emt 0:00:49]} 42. Nxd5 {[%emt 0:00:35]} Ng2+ {[%emt 0:00:49]} 43. Kf2 {[%emt 0:00:14]} Rxd5 {[%emt 0:00:23]} 44. Kxg2 {[%emt 0:00:06]} Rb5 {[%emt 0:00:27]} 45. Re4 {[%emt 0:00:17]} f5 {[%emt 0:00:16]} 46. Rd4 {[%emt 0:00:16]} Kf7 {[%emt 0:00:18]} 47. Kf2 {[%emt 0:00:25]} Ke6 {[%emt 0:00:45]} 48. f4 {[%emt 0:01:48]} Rb6 {[%emt 0:00:05]} 49. Kg3 {[%emt 0:01:07]} Kf6 {[%emt 0:01:20]} 50. Kh4 {[%emt 0:00:13]} Rb8 {[%emt 0:00:09]} 51. Rd6+ {[%emt 0:01:39]} Ke7 {[%emt 0:00:43]} 52. Rxg6 {[%emt 0:00:11]} Rxb4 {[%emt 0:00:05]} 53. Kg5 {[%emt 0:00:08]} Rb5 {[%emt 0:00:27]} 54. Ra6 {[%emt 0:00:49]} Rc5 {[%emt 0:00:30]} 55. Kg6 {[%emt 0:00:14]} Rb5 {[%emt 0:00:23]} 56. Ra7+ {[%emt 0:00:23]} Ke6 {[%emt 0:00:13]} 57. Ra1 {[%emt 0:01:21]} Rd5 {[%emt 0:01:26]} 58. Re1+ {[%emt 0:00:17]} Kd6 {[%emt 0:00:28]} 59. Kf6 {[%emt 0:00:09]} Kd7 {[%emt 0:00:29]} 60. Re7+ {[%emt 0:01:18]} Kd8 {[%emt 0:00:25]} 61. Re1 {[%emt 0:02:12]} Kd7 {[%emt 0:00:21]} 62. Ra1 {[%emt 0:00:27]} Rd6+ {[%emt 0:00:33]} 63. Ke5 {[%emt 0:00:54]} Rb6 {[%emt 0:00:21]} 64. Kxf5 {[%emt 0:01:03]} Ke7 {[%emt 0:00:08]} 65. Ra7+ {[%emt 0:00:08]} Kf8 {[%emt 0:00:11]} 66. Kg5 {[%emt 0:00:19]} Rc6 {[%emt 0:00:12]} 67. Rd7 {[%emt 0:00:22]} Rc5+ {[%emt 0:00:41]} 68. Kf6 {[%emt 0:00:39]} Rc6+ {[%emt 0:00:22]} 69. Ke5 {[%emt 0:00:03]} Ra6 {[%emt 0:01:05]} 70. Rb7 {[%emt 0:01:33]} Rc6 {[%emt 0:00:25]} 71. f5 {[%emt 0:00:41]} Ra6 {[%emt 0:00:08]} 72. Kf4 {[%emt 0:00:12]} Rc6 {[%emt 0:00:20]} 73. Kg5 {[%emt 0:00:04]} Ra6 {[%emt 0:00:12]} 74. f6 {[%emt 0:00:11]} Ra1 {[%emt 0:00:06]} 75. f7 {[%emt 0:00:01]} Rg1+ {[%emt 0:00:18]} 76. Kf4 {[%emt 0:00:04]} Rf1+ {[%emt 0:00:11]} 77. Ke3 {[%emt 0:00:03]} Rxf7 {[%emt 0:00:10]} 78. Rxf7+ {[%emt 0:00:03]} 1/2-1/2

[Event "Cellavision Cup 2019"]
[Site "Lund"]
[Date "2019.08.03"]
[Round "5.15"]
[White "Olund, Joar"]
[Black "Unmack, Christian"]
[Result "1-0"]
[ECO "A45"]
[WhiteElo "2313"]
[BlackElo "2133"]
[Annotator "NA"]
[PlyCount "61"]
[EventDate "2019.08.02"]
[EventType "swiss"]
[EventCountry "SWE"]
[SourceTitle "playchess.com"]
[Source "ChessBase"]
[SourceQuality "1"]
[TimeControl "5400+30"]

1. d4 {[%emt 0:01:29]} Nf6 {[%emt 0:00:21]} 2. Bg5 {[%emt 0:00:13]} d5 {[%emt 0:00:07]} 3. Bxf6 {[%emt 0:00:05]} gxf6 {[%emt 0:00:05]} 4. e3 {[%emt 0:00:08]} e6 {[%emt 0:02:52]} 5. Nf3 {[%emt 0:02:58]} c6 {[%emt 0:04:11]} 6. c4 {[%emt 0:02:47]} b6 {[%emt 0:01:36]} 7. Bd3 {[%emt 0:09:45]} Bb7 {[%emt 0:02:02]} 8. Nc3 {[%emt 0:02:33]} Nd7 {[%emt 0:01:43]} 9. cxd5 {[%emt 0:02:22]} cxd5 {[%emt 0:03:27]} 10. e4 {[%emt 0:00:55]} dxe4 {[%emt 0:00:27]} 11. Bxe4 {[%emt 0:00:08]} Bxe4 {[%emt 0:00:52]} 12. Nxe4 {[%emt 0:00:04]} Bb4+ {[%emt 0:06:10]} 13. Nc3 {[%emt 0:00:29]} Qe7 {[%emt 0:02:14]} 14. Rc1 {[%emt 0:05:12]} Rd8 {[%emt 0:05:47]} 15. O-O {[%emt 0:04:44]} h5 {[%emt 0:18:04]} 16. Qe2 {[%emt 0:09:32]} Bd6 {[%emt 0:03:34]} 17. d5 {[%emt 0:02:23]} Ne5 {[%emt 0:04:39]} 18. dxe6 {[%emt 0:05:31]} fxe6 {[%emt 0:02:47]} 19. Rfd1 {[%emt 0:08:47]} Ng4 {[%emt 0:06:02]} 20. Ne4 {[%emt 0:03:54]} Bf4 {[%emt 0:01:06]} 21. Rxd8+ {[%emt 0:01:06]} Qxd8 {[%emt 0:01:54]} 22. Rd1 {[%emt 0:00:21]} Qc7 {[%emt 0:04:04]} 23. Nxf6+ {[%emt 0:03:26]} Nxf6 {[%emt 0:05:14]} 24. Qxe6+ {[%emt 0:00:10]} Qe7 {[%emt 0:00:11]} 25. Qc8+ {[%emt 0:00:07]} Kf7 {[%emt 0:00:03]} 26. Qxh8 {[%emt 0:00:08]} Qe2 {[%emt 0:08:05]} 27. Re1 {[%emt 0:02:01]} Qxb2 {[%emt 0:02:19]} 28. Qc8 {[%emt 0:00:51]} Qxa2 {[%emt 0:00:22]} 29. Qf5 {[%emt 0:01:01]} Qc4 {[%emt 0:02:42]} 30. g3 {[%emt 0:00:50]} Bd6 {[%emt 0:00:33]} 31. Re6 {[%emt 0:01:05]} 1-0

[Event "Cellavision Cup 2019"]
[Site "Lund"]
[Date "2019.08.03"]
[Round "5.16"]
[White "Kucuksari, Kaan"]
[Black "Eriksson, Kristian"]
[Result "1-0"]
[ECO "A99"]
[WhiteElo "2310"]
[BlackElo "2123"]
[Annotator "NA"]
[PlyCount "61"]
[EventDate "2019.08.02"]
[EventType "swiss"]
[EventCountry "SWE"]
[SourceTitle "playchess.com"]
[Source "ChessBase"]
[SourceQuality "1"]
[TimeControl "5400+30"]

1. d4 {[%emt 0:00:00]} e6 {[%emt 0:00:00]} 2. c4 {[%emt 0:00:00]} f5 {[%emt 0:00:17]} 3. Nf3 {[%emt 0:00:00]} Nf6 {[%emt 0:00:14]} 4. g3 {[%emt 0:00:00]} Be7 {[%emt 0:01:23]} 5. Bg2 {[%emt 0:00:05]} O-O {[%emt 0:00:08]} 6. O-O {[%emt 0:00:03]} d6 {[%emt 0:00:15]} 7. Nc3 {[%emt 0:00:06]} Qe8 {[%emt 0:00:37]} 8. b3 {[%emt 0:02:12]} Qh5 {[%emt 0:02:07]} 9. e3 {[%emt 0:02:09]} a5 {[%emt 0:06:47]} 10. Nd2 {[%emt 0:13:52]} Qg6 {[%emt 0:05:49]} 11. Bb2 {[%emt 0:05:32]} c6 {[%emt 0:06:02]} 12. d5 {[%emt 0:11:08]} e5 {[%emt 0:06:29]} 13. Nf3 {[%emt 0:04:31]} c5 {[%emt 0:14:39]} 14. Qe2 {[%emt 0:15:54]} Ne4 {[%emt 0:13:59]} 15. Nb5 {[%emt 0:04:24]} Bd7 {[%emt 0:07:16]} 16. Nc7 {[%emt 0:00:35]} Ra7 {[%emt 0:00:35]} 17. Ne1 {[%emt 0:05:44]} b6 {[%emt 0:03:26]} 18. Nb5 {[%emt 0:00:25]} Bxb5 {[%emt 0:01:10]} 19. cxb5 {[%emt 0:00:02]} Nd7 {[%emt 0:01:49]} 20. a4 {[%emt 0:00:18]} Rc7 {[%emt 0:05:39]} 21. Rc1 {[%emt 0:02:59]} Rfc8 {[%emt 0:06:59]} 22. Rc4 {[%emt 0:00:54]} Ng5 {[%emt 0:02:54]} 23. f4 {[%emt 0:03:31]} Nf7 {[%emt 0:01:19]} 24. e4 {[%emt 0:02:59]} fxe4 {[%emt 0:03:52]} 25. Bxe4 {[%emt 0:02:47]} Qh6 {[%emt 0:00:06]} 26. Bf5 {[%emt 0:06:56]} Rf8 {[%emt 0:00:51]} 27. Bc1 {[%emt 0:02:15]} Nd8 {[%emt 0:05:38]} 28. fxe5 {[%emt 0:05:17]} Bg5 {[%emt 0:00:07]} 29. exd6 {[%emt 0:01:34]} Rb7 {[%emt 0:01:10]} 30. Rh4 {[%emt 0:01:50]} Qf6 {[%emt 0:02:50]} 31. Bxh7+ {[%emt 0:00:17]} 1-0

[Event "Cellavision Cup 2019"]
[Site "Lund"]
[Date "2019.08.03"]
[Round "6.5"]
[White "Dourerassou, Jonathan"]
[Black "Popilski, Gil"]
[Result "0-1"]
[ECO "B91"]
[WhiteElo "2477"]
[BlackElo "2467"]
[Annotator "ChessBase"]
[PlyCount "88"]
[EventDate "2019.08.02"]
[EventType "swiss"]
[EventCountry "SWE"]
[SourceTitle "playchess.com"]
[Source "ChessBase"]
[SourceQuality "1"]
[TimeControl "5400+30"]

1. e4 {[%emt 0:00:00]} c5 {[%emt 0:12:59]} 2. Nf3 {[%emt 0:00:00]} d6 {[%emt 0:01:22]} 3. d4 {[%emt 0:00:01]} Nf6 {[%emt 0:00:04]} 4. Nc3 {[%emt 0:00:11]} cxd4 {[%emt 0:00:04]} 5. Nxd4 {[%emt 0:00:07]} a6 {[%emt 0:00:03]} 6. g3 {[%emt 0:00:15]} e6 {[%emt 0:01:35]} 7. Bg2 {[%emt 0:00:07]} Be7 {[%emt 0:00:02]} 8. O-O {[%emt 0:00:09]} O-O {[%emt 0:00:04]} 9. Be3 {[%emt 0:00:14]} Qc7 {[%emt 0:02:26]} 10. Qe2 {[%emt 0:00:37]} Nc6 {[%emt 0:00:24]} 11. Rad1 {[%emt 0:00:42]} Bd7 {[%emt 0:00:58]} 12. f4 {[%emt 0:01:08]} b5 {[%emt 0:04:52]} 13. Nb3 {[%emt 0:02:57]} b4 {[%emt 0:09:08]} 14. Na4 {[%emt 0:11:09]} Rab8 {[%emt 0:00:58]} 15. e5 {[%emt 0:07:28]} Nd5 {[%emt 0:05:57]} 16. exd6 {[%emt 0:03:31]} Bxd6 {[%emt 0:00:15]} 17. Nac5 {[%emt 0:04:07]} Nxe3 {[%emt 0:01:39]} 18. Qxe3 {[%emt 0:01:01]} Bc8 {[%emt 0:00:18]} 19. Rd3 {[%emt 0:17:21]} Na5 {[%emt 0:06:46]} 20. Qd4 {[%emt 0:13:03]} Be7 {[%emt 0:04:12]} 21. Rfd1 {[%emt 0:02:42]} Rb5 {[%emt 0:13:50]} 22. Ne4 {[%emt 0:04:48]} Rd5 {[%emt 0:05:26]} 23. Qe3 {[%emt 0:01:17]} Nc4 {[%emt 0:05:51]} 24. Qc1 {[%emt 0:01:30]} Qb6+ {[%emt 0:00:07]} 25. Nf2 {[%emt 0:01:22]} Rxd3 {[%emt 0:00:25]} 26. Rxd3 {[%emt 0:00:44]} Bf6 {[%emt 0:00:26]} 27. c3 {[%emt 0:00:53]} bxc3 {[%emt 0:00:20]} 28. bxc3 {[%emt 0:00:07]} Rd8 {[%emt 0:00:35]} 29. Rxd8+ {[%emt 0:04:03]} Bxd8 {[%emt 0:01:43]} 30. Bf3 {[%emt 0:01:03]} Bf6 {[%emt 0:02:06]} 31. Qd1 {[%emt 0:03:09]} Bxc3 {[%emt 0:02:02]} 32. Qd3 {[%emt 0:10:21]} Be1 {[%emt 0:00:14]} 33. Kh1 {[%emt 0:00:19]} Nd6 {[%emt 0:03:08]} 34. Ne4 {[%emt 0:01:12]} Nxe4 {[%emt 0:00:43]} 35. Bxe4 {[%emt 0:00:50]} g6 {[%emt 0:01:34]} 36. Nd4 {[%emt 0:00:53]} Bb7 {[%emt 0:02:27]} 37. Nf3 {[%emt 0:01:29]} Ba5 {[%emt 0:00:49]} 38. Ne5 {[%emt 0:01:31]} Bxe4+ {[%emt 0:05:15]} 39. Qxe4 {[%emt 0:00:06]} Qf2 {[%emt 0:00:13]} 40. Qf3 {[%emt 0:02:25]} Qxa2 {[%emt 0:00:11]} 41. Qa8+ {[%emt 0:01:59]} Kg7 {[%emt 0:00:01]} 42. Qxa6 {[%emt 0:00:30]} Qd5+ {[%emt 0:01:09]} 43. Kg1 {[%emt 0:00:10]} Bc3 {[%emt 0:03:32]} 44. Ng4 {[%emt 0:02:42]} Qd1+ {[%emt 0:00:08]} 0-1

[Event "Cellavision Cup 2019"]
[Site "Lund"]
[Date "2019.08.03"]
[Round "6.6"]
[White "Kucuksari, Kaan"]
[Black "Blomqvist, Erik"]
[Result "0-1"]
[ECO "D02"]
[WhiteElo "2310"]
[BlackElo "2492"]
[Annotator "ChessBase"]
[PlyCount "66"]
[EventDate "2019.08.02"]
[EventType "swiss"]
[EventCountry "SWE"]
[SourceTitle "playchess.com"]
[Source "ChessBase"]
[SourceQuality "1"]
[TimeControl "5400+30"]

1. d4 {[%emt 0:00:00]} d5 {[%emt 0:00:01]} 2. Nf3 {[%emt 0:00:00]} Nf6 {[%emt 0:00:17]} 3. c4 {[%emt 0:00:00]} e6 {[%emt 0:00:14]} 4. g3 {[%emt 0:00:00]} Bb4+ {[%emt 0:00:57]} 5. Bd2 {[%emt 0:00:00]} a5 {[%emt 0:00:29]} 6. Bg2 {[%emt 0:00:54]} O-O {[%emt 0:00:16]} 7. Qc2 {[%emt 0:02:43]} c5 {[%emt 0:01:11]} 8. cxd5 {[%emt 0:07:48]} cxd4 {[%emt 0:00:08]} 9. Nxd4 {[%emt 0:01:24]} Qb6 {[%emt 0:00:26]} 10. Nf3 {[%emt 0:08:19]} exd5 {[%emt 0:00:27]} 11. O-O {[%emt 0:01:36]} Nc6 {[%emt 0:00:39]} 12. a3 {[%emt 0:09:04]} Be7 {[%emt 0:04:42]} 13. Rd1 {[%emt 0:05:33]} d4 {[%emt 0:02:40]} 14. Bg5 {[%emt 0:04:45]} Be6 {[%emt 0:06:06]} 15. Nbd2 {[%emt 0:02:59]} Rac8 {[%emt 0:00:44]} 16. Rac1 {[%emt 0:00:55]} Rfd8 {[%emt 0:02:28]} 17. Qb1 {[%emt 0:07:36]} h6 {[%emt 0:01:53]} 18. Bxf6 {[%emt 0:01:36]} Bxf6 {[%emt 0:00:07]} 19. Nc4 {[%emt 0:02:11]} Qa6 {[%emt 0:10:41]} 20. Qd3 {[%emt 0:01:18]} Nb4 {[%emt 0:07:21]} 21. axb4 {[%emt 0:00:56]} Bxc4 {[%emt 0:00:49]} 22. Qf5 {[%emt 0:07:33]} Be6 {[%emt 0:08:06]} 23. Qe4 {[%emt 0:13:48]} Bd5 {[%emt 0:04:00]} 24. Qd3 {[%emt 0:02:30]} Bc4 {[%emt 0:12:08]} 25. Qf5 {[%emt 0:01:56]} b6 {[%emt 0:01:04]} 26. Bf1 {[%emt 0:05:46]} axb4 {[%emt 0:02:31]} 27. Nd2 {[%emt 0:00:01]} Be6 {[%emt 0:06:12]} 28. Qd3 {[%emt 0:01:20]} Qa2 {[%emt 0:01:44]} 29. Rxc8 {[%emt 0:02:57]} Rxc8 {[%emt 0:00:49]} 30. Ne4 {[%emt 0:01:45]} Be7 {[%emt 0:00:47]} 31. Qd2 {[%emt 0:05:19]} f5 {[%emt 0:00:41]} 32. Bh3 {[%emt 0:00:48]} fxe4 {[%emt 0:00:17]} 33. b3 {[%emt 0:00:05]} Qxb3 {[%emt 0:00:26]} 0-1

[Event "Cellavision Cup 2019"]
[Site "Lund"]
[Date "2019.08.03"]
[Round "6.7"]
[White "Kristiansen, Jens"]
[Black "Silseth, Simon"]
[Result "1/2-1/2"]
[ECO "D35"]
[WhiteElo "2400"]
[BlackElo "2264"]
[Annotator "NA"]
[PlyCount "119"]
[EventDate "2019.08.02"]
[EventType "swiss"]
[EventCountry "SWE"]
[SourceTitle "playchess.com"]
[Source "ChessBase"]
[SourceQuality "1"]
[TimeControl "5400+30"]

1. d4 {[%emt 0:00:00]} d5 {[%emt 0:00:01]} 2. c4 {[%emt 0:00:00]} e6 {[%emt 0:00:31]} 3. Nc3 {[%emt 0:00:00]} Nf6 {[%emt 0:00:20]} 4. cxd5 {[%emt 0:00:32]} exd5 {[%emt 0:00:25]} 5. Bg5 {[%emt 0:00:10]} c6 {[%emt 0:00:37]} 6. e3 {[%emt 0:00:17]} Be7 {[%emt 0:01:22]} 7. Bd3 {[%emt 0:00:25]} Nbd7 {[%emt 0:04:17]} 8. Nge2 {[%emt 0:01:02]} O-O {[%emt 0:02:49]} 9. Qc2 {[%emt 0:00:34]} Re8 {[%emt 0:02:04]} 10. O-O {[%emt 0:00:46]} Nf8 {[%emt 0:02:43]} 11. f3 {[%emt 0:11:27]} g6 {[%emt 0:14:55]} 12. Kh1 {[%emt 0:06:29]} Ne6 {[%emt 0:04:21]} 13. Bh4 {[%emt 0:01:51]} Nh5 {[%emt 0:08:41]} 14. Bxe7 {[%emt 0:08:46]} Rxe7 {[%emt 0:01:00]} 15. Rad1 {[%emt 0:04:40]} Bd7 {[%emt 0:06:29]} 16. Qc1 {[%emt 0:03:59]} b5 {[%emt 0:07:58]} 17. a3 {[%emt 0:03:59]} a5 {[%emt 0:00:31]} 18. e4 {[%emt 0:01:29]} Nc7 {[%emt 0:02:29]} 19. e5 {[%emt 0:04:36]} f5 {[%emt 0:01:55]} 20. exf6 {[%emt 0:06:09]} Nxf6 {[%emt 0:00:17]} 21. Ng3 {[%emt 0:01:32]} Nce8 {[%emt 0:04:48]} 22. f4 {[%emt 0:06:12]} Rg7 {[%emt 0:00:25]} 23. f5 {[%emt 0:02:29]} g5 {[%emt 0:00:08]} 24. Qe3 {[%emt 0:02:48]} h5 {[%emt 0:03:25]} 25. h3 {[%emt 0:03:19]} h4 {[%emt 0:00:36]} 26. Nge2 {[%emt 0:00:17]} Nd6 {[%emt 0:00:53]} 27. g4 {[%emt 0:01:27]} b4 {[%emt 0:02:01]} 28. Na4 {[%emt 0:02:23]} Qe7 {[%emt 0:02:30]} 29. Qxe7 {[%emt 0:03:37]} Rxe7 {[%emt 0:00:07]} 30. Nc5 {[%emt 0:00:25]} Rae8 {[%emt 0:01:02]} 31. Ng1 {[%emt 0:01:10]} Nde4 {[%emt 0:01:43]} 32. Bxe4 {[%emt 0:00:28]} Nxe4 {[%emt 0:01:21]} 33. Nxe4 {[%emt 0:00:18]} dxe4 {[%emt 0:00:06]} 34. Rc1 {[%emt 0:02:49]} bxa3 {[%emt 0:01:11]} 35. bxa3 {[%emt 0:00:06]} Rb8 {[%emt 0:00:18]} 36. Rc5 {[%emt 0:02:57]} Rb5 {[%emt 0:00:16]} 37. Rfc1 {[%emt 0:01:24]} Kf7 {[%emt 0:00:27]} 38. Kg2 {[%emt 0:00:50]} Re8 {[%emt 0:01:15]} 39. Kf2 {[%emt 0:01:42]} Reb8 {[%emt 0:02:33]} 40. Ne2 {[%emt 0:00:30]} Rb2 {[%emt 0:03:52]} 41. R1c2 {[%emt 0:00:51]} Rxc2 {[%emt 0:01:56]} 42. Rxc2 {[%emt 0:00:07]} Rb3 {[%emt 0:00:10]} 43. Rc3 {[%emt 0:01:38]} Rb2 {[%emt 0:00:21]} 44. Rc5 {[%emt 0:05:10]} Ke7 {[%emt 0:01:06]} 45. Ke3 {[%emt 0:01:08]} Kd6 {[%emt 0:01:27]} 46. Nc3 {[%emt 0:00:49]} Rb3 {[%emt 0:00:11]} 47. a4 {[%emt 0:01:25]} Be8 {[%emt 0:00:53]} 48. Kd2 {[%emt 0:00:30]} e3+ {[%emt 0:01:16]} 49. Kxe3 {[%emt 0:00:22]} Bf7 {[%emt 0:00:08]} 50. Kd2 {[%emt 0:00:38]} Bd5 {[%emt 0:00:23]} 51. Kc2 {[%emt 0:00:26]} Rb4 {[%emt 0:00:19]} 52. Rxa5 {[%emt 0:01:11]} Bg2 {[%emt 0:01:22]} 53. f6 {[%emt 0:02:28]} Rxd4 {[%emt 0:00:35]} 54. Rxg5 {[%emt 0:00:56]} Rf4 {[%emt 0:01:50]} 55. Rh5 {[%emt 0:00:30]} Bxh3 {[%emt 0:00:26]} 56. Rxh4 {[%emt 0:00:10]} Bxg4 {[%emt 0:00:35]} 57. Rh6 {[%emt 0:01:02]} Bf5+ {[%emt 0:01:48]} 58. Kb2 {[%emt 0:01:05]} Be6 {[%emt 0:01:10]} 59. a5 {[%emt 0:00:54]} Kc5 {[%emt 0:00:43]} 60. Rh5+ {[%emt 0:01:49]} 1/2-1/2

[Event "Cellavision Cup 2019"]
[Site "Lund"]
[Date "2019.08.03"]
[Round "6.8"]
[White "Frisk, Ellinor"]
[Black "Lindberg, Bengt"]
[Result "0-1"]
[ECO "A32"]
[WhiteElo "2264"]
[BlackElo "2384"]
[Annotator "ChessBase"]
[PlyCount "188"]
[EventDate "2019.08.02"]
[EventType "swiss"]
[EventCountry "SWE"]
[SourceTitle "playchess.com"]
[Source "ChessBase"]
[SourceQuality "1"]
[TimeControl "5400+30"]

1. Nf3 {[%emt 0:00:00]} Nf6 {[%emt 0:00:24]} 2. c4 {[%emt 0:00:00]} c5 {[%emt 0:00:35]} 3. d4 {[%emt 0:00:02]} cxd4 {[%emt 0:00:34]} 4. Nxd4 {[%emt 0:00:02]} e6 {[%emt 0:00:58]} 5. g3 {[%emt 0:04:28]} a6 {[%emt 0:03:30]} 6. Bg2 {[%emt 0:00:19]} Qc7 {[%emt 0:00:50]} 7. b3 {[%emt 0:03:43]} Bb4+ {[%emt 0:03:46]} 8. Bd2 {[%emt 0:00:47]} Bc5 {[%emt 0:00:13]} 9. Bc3 {[%emt 0:01:28]} O-O {[%emt 0:04:51]} 10. O-O {[%emt 0:00:05]} Rd8 {[%emt 0:06:41]} 11. Nd2 {[%emt 0:09:47]} d5 {[%emt 0:07:39]} 12. cxd5 {[%emt 0:08:06]} Nxd5 {[%emt 0:01:00]} 13. Bb2 {[%emt 0:00:27]} e5 {[%emt 0:01:21]} 14. Nc2 {[%emt 0:14:03]} Nc6 {[%emt 0:01:51]} 15. a3 {[%emt 0:07:44]} Bg4 {[%emt 0:03:10]} 16. Rc1 {[%emt 0:05:24]} Qe7 {[%emt 0:03:10]} 17. Qe1 {[%emt 0:01:42]} Nd4 {[%emt 0:11:23]} 18. Nxd4 {[%emt 0:02:26]} Bxd4 {[%emt 0:08:24]} 19. Bxd4 {[%emt 0:00:30]} exd4 {[%emt 0:00:04]} 20. Nf3 {[%emt 0:00:29]} d3 {[%emt 0:06:28]} 21. exd3 {[%emt 0:03:14]} Qxa3 {[%emt 0:00:08]} 22. Nd4 {[%emt 0:02:42]} Qd6 {[%emt 0:05:01]} 23. Rc4 {[%emt 0:07:00]} Nb6 {[%emt 0:05:06]} 24. Nb5 {[%emt 0:06:43]} Qg6 {[%emt 0:01:52]} 25. Nc7 {[%emt 0:00:54]} Nxc4 {[%emt 0:04:27]} 26. Nxa8 {[%emt 0:00:02]} Nd6 {[%emt 0:00:28]} 27. Nc7 {[%emt 0:02:36]} Qxd3 {[%emt 0:01:19]} 28. Qe7 {[%emt 0:01:35]} Rd7 {[%emt 0:09:30]} 29. Qg5 {[%emt 0:00:28]} Qf5 {[%emt 0:01:26]} 30. Qxf5 {[%emt 0:03:50]} Bxf5 {[%emt 0:02:13]} 31. Rc1 {[%emt 0:00:11]} Kf8 {[%emt 0:00:20]} 32. Nd5 {[%emt 0:00:53]} Be6 {[%emt 0:01:03]} 33. Kf1 {[%emt 0:02:36]} Rd8 {[%emt 0:02:34]} 34. Ke2 {[%emt 0:05:05]} Nf5 {[%emt 0:00:59]} 35. Nf4 {[%emt 0:03:04]} Bxb3 {[%emt 0:01:51]} 36. Bxb7 {[%emt 0:00:08]} g5 {[%emt 0:00:10]} 37. Nd3 {[%emt 0:00:43]} a5 {[%emt 0:00:59]} 38. Rc5 {[%emt 0:01:31]} Nd4+ {[%emt 0:00:03]} 39. Kd2 {[%emt 0:00:13]} a4 {[%emt 0:00:10]} 40. Ra5 {[%emt 0:01:10]} h6 {[%emt 0:00:50]} 41. Kc3 {[%emt 0:00:38]} Ne2+ {[%emt 0:00:22]} 42. Kd2 {[%emt 0:00:04]} Nc1 {[%emt 0:00:41]} 43. Kxc1 {[%emt 0:00:58]} Rxd3 {[%emt 0:00:05]} 44. h4 {[%emt 0:01:26]} gxh4 {[%emt 0:00:29]} 45. gxh4 {[%emt 0:00:06]} Rd1+ {[%emt 0:00:13]} 46. Kb2 {[%emt 0:00:03]} Rd2+ {[%emt 0:00:07]} 47. Kc3 {[%emt 0:00:48]} Rxf2 {[%emt 0:00:27]} 48. h5 {[%emt 0:01:03]} Rh2 {[%emt 0:00:32]} 49. Kb4 {[%emt 0:00:49]} Kg7 {[%emt 0:00:25]} 50. Bc6 {[%emt 0:00:20]} Bd1 {[%emt 0:00:48]} 51. Ka3 {[%emt 0:00:33]} Rh3+ {[%emt 0:00:27]} 52. Kb2 {[%emt 0:00:14]} Rh2+ {[%emt 0:01:34]} 53. Kc1 {[%emt 0:00:31]} Bb3 {[%emt 0:00:22]} 54. Be8 {[%emt 0:01:31]} Rc2+ {[%emt 0:00:42]} 55. Kb1 {[%emt 0:00:03]} Rc4 {[%emt 0:00:35]} 56. Kb2 {[%emt 0:00:23]} Rg4 {[%emt 0:00:14]} 57. Kc3 {[%emt 0:00:23]} Rg5 {[%emt 0:00:23]} 58. Ra7 {[%emt 0:00:21]} Rxh5 {[%emt 0:00:25]} 59. Bxa4 {[%emt 0:00:09]} Bxa4 {[%emt 0:00:04]} 60. Rxa4 {[%emt 0:00:04]} Rd5 {[%emt 0:00:08]} 61. Ra1 {[%emt 0:01:30]} h5 {[%emt 0:01:01]} 62. Rg1+ {[%emt 0:00:12]} Kh6 {[%emt 0:00:55]} 63. Kc4 {[%emt 0:00:15]} Rd7 {[%emt 0:00:19]} 64. Rh1 {[%emt 0:00:09]} f5 {[%emt 0:00:50]} 65. Rf1 {[%emt 0:00:13]} Kg5 {[%emt 0:00:40]} 66. Rg1+ {[%emt 0:00:04]} Kf6 {[%emt 0:01:51]} 67. Rh1 {[%emt 0:01:34]} Rh7 {[%emt 0:00:05]} 68. Kd3 {[%emt 0:00:29]} h4 {[%emt 0:00:06]} 69. Ke3 {[%emt 0:00:37]} h3 {[%emt 0:00:06]} 70. Rh2 {[%emt 0:00:36]} Kg5 {[%emt 0:00:19]} 71. Kf3 {[%emt 0:00:06]} f4 {[%emt 0:02:07]} 72. Kf2 {[%emt 0:01:25]} Kg4 {[%emt 0:00:06]} 73. Kg1 {[%emt 0:00:20]} Rd7 {[%emt 0:00:59]} 74. Ra2 {[%emt 0:00:15]} Rd1+ {[%emt 0:00:22]} 75. Kh2 {[%emt 0:00:13]} Re1 {[%emt 0:00:30]} 76. Ra8 {[%emt 0:00:47]} Re2+ {[%emt 0:00:19]} 77. Kg1 {[%emt 0:00:21]} Kg3 {[%emt 0:00:59]} 78. Rg8+ {[%emt 0:00:10]} Kf3 {[%emt 0:00:01]} 79. Rf8 {[%emt 0:00:55]} Rg2+ {[%emt 0:00:37]} 80. Kh1 {[%emt 0:00:41]} Ra2 {[%emt 0:00:31]} 81. Kg1 {[%emt 0:00:18]} Ra5 {[%emt 0:00:37]} 82. Rf7 {[%emt 0:00:52]} Rh5 {[%emt 0:00:24]} 83. Kh2 {[%emt 0:00:20]} Ra5 {[%emt 0:00:30]} 84. Kg1 {[%emt 0:00:17]} Ra8 {[%emt 0:00:18]} 85. Rf6 {[%emt 0:00:17]} Re8 {[%emt 0:00:35]} 86. Rf7 {[%emt 0:00:14]} Ke3 {[%emt 0:00:17]} 87. Kf1 {[%emt 0:01:13]} f3 {[%emt 0:00:38]} 88. Ra7 {[%emt 0:02:06]} h2 {[%emt 0:00:33]} 89. Ra3+ {[%emt 0:00:26]} Kf4 {[%emt 0:00:14]} 90. Rxf3+ {[%emt 0:00:11]} Kg4 {[%emt 0:00:43]} 91. Kf2 {[%emt 0:01:04]} Rh8 {[%emt 0:00:51]} 92. Rg3+ {[%emt 0:00:36]} Kf4 {[%emt 0:00:06]} 93. Rf3+ {[%emt 0:00:10]} Ke4 {[%emt 0:00:05]} 94. Re3+ {[%emt 0:00:43]} Kd4 {[%emt 0:00:05]} 0-1